fUSD/lending_fUSD_20260621
["ID","MTS","AMOUNT","RATE_DAILY","PERIOD"]
[425882589,1782019832000,-151.0,0.00020999,2]
[425882550,1782019832000,-500.0,0.00012999,2]
[425882554,1782019832000,-500.0,0.00012999,2]
[425882551,1782019832000,-500.0,0.00012999,2]
[425882553,1782019832000,-500.0,0.00012999,2]
[425882556,1782019832000,-500.0,0.00012999,2]
[425882555,1782019832000,-500.0,0.00012999,2]
[425882568,1782019832000,-229.73035805,0.00012999,2]
[425882557,1782019832000,-500.0,0.00012999,2]
[425882559,1782019832000,-274.8691975,0.00012999,2]
[425882552,1782019832000,-500.0,0.00012999,2]
[425882560,1782019832000,-52.6364479,0.00012999,2]
[425882565,1782019832000,-183.12800616,0.00012999,2]
[425882563,1782019832000,-500.0,0.00012999,2]
[425882567,1782019832000,-500.0,0.00012999,2]
[425882561,1782019832000,-426.43733275,0.00012999,2]
[425882558,1782019832000,-500.0,0.00012999,2]
[425882588,1782019832000,-151.0,0.00020999,2]
[425882634,1782019832000,-1000.0,0.00026526,120]
[425882593,1782019832000,-156.0,0.00021,2]
[425882620,1782019832000,-166.66,0.00025658,30]
[425882626,1782019832000,-150.0,0.00025879,2]
[425882627,1782019832000,-166.66,0.00026176,30]
[425882625,1782019832000,-20778.55,0.00025879,2]
[425882623,1782019832000,-618.82,0.00025866,2]
[425882628,1782019832000,-208.62,0.00026184,120]
[425882629,1782019832000,-1000.0,0.00026186,2]
[425882631,1782019832000,-2581.07,0.00026319,2]
[425882633,1782019832000,-6143.84854655,0.00026439,2]
[425882638,1782019832000,-166.66,0.00026694,30]
[425882632,1782019832000,-1657.4176,0.00026376,2]
[425882630,1782019832000,-150.0,0.00026298,2]
[425882636,1782019832000,-260.19,0.00026601,2]
[425882635,1782019832000,-12958.54,0.00026532,2]
[425882590,1782019832000,-151.0,0.00020999,2]
[425882622,1782019832000,-662.2407,0.00025776,14]
[425882621,1782019832000,-489.45066234,0.00025776,14]
[425882637,1782019832000,-3647.0,0.00026663,2]
[425882619,1782019832000,-5000.0,0.00025631,2]
[425882624,1782019832000,-220.0,0.00025866,2]
[425882592,1782019832000,-151.0,0.00020999,2]
[425882594,1782019832000,-156.0,0.00022,2]
[425882596,1782019832000,-300.1,0.00023368,2]
[425882595,1782019832000,-288.15366848,0.0002307,2]
[425882616,1782019832000,-185.46711935,0.00025276,14]
[425882604,1782019832000,-166.66,0.00024621,30]
[425882597,1782019832000,-862.0,0.00023368,2]
[425882591,1782019832000,-151.0,0.00020999,2]
[425882611,1782019832000,-326.0,0.00025,3]
[425882606,1782019832000,-171.39,0.00024658,2]
[425882609,1782019832000,-2370.34092411,0.0002467,2]
[425882614,1782019832000,-166.66,0.00025139,30]
[425882601,1782019832000,-16130.0,0.00024463,7]
[425882617,1782019832000,-327.18598265,0.00025276,14]
[425882598,1782019832000,-517.0,0.0002375,5]
[425882618,1782019832000,-231.57,0.00025505,2]
[425882661,1782019833000,-688.45789194,0.00028702,2]
[425882657,1782019833000,-790.15858567,0.00028433,2]
[425882662,1782019833000,-158.30503689,0.00028766,2]
[425882674,1782019833000,-301.73,0.00028997,2]
[425882658,1782019833000,-222.11900407,0.00028634,2]
[425882659,1782019833000,-643.99,0.0002867,2]
[425882666,1782019833000,-156.0,0.00028848,30]
[425882664,1782019833000,-2331.0,0.00028803,3]
[425882665,1782019833000,-156.0,0.00028848,30]
[425882668,1782019833000,-155.0,0.00028848,30]
[425882670,1782019833000,-165.37889936,0.00028848,30]
[425882667,1782019833000,-161.0,0.00028848,30]
[425882669,1782019833000,-155.0,0.00028848,30]
[425882660,1782019833000,-101.70069373,0.00028702,2]
[425882663,1782019833000,-1047.99,0.00028793,10]
[425882656,1782019833000,-1257.59,0.00028254,10]
[425882649,1782019833000,-166.43,0.00027457,2]
[425882653,1782019833000,-1260.5062,0.00028164,2]
[425882639,1782019833000,-3303.842,0.00026805,14]
[425882640,1782019833000,-165.052,0.00026805,14]
[425882641,1782019833000,-250.0,0.00026849,8]
[425882642,1782019833000,-250.0,0.00026849,8]
[425882643,1782019833000,-156.67,0.00026857,2]
[425882644,1782019833000,-331.1,0.000269,2]
[425882655,1782019833000,-1509.11,0.00028254,10]
[425882646,1782019833000,-211.52,0.00027384,2]
[425882648,1782019833000,-873.32,0.00027397,10]
[425882647,1782019833000,-158.30503689,0.00027397,2]
[425882645,1782019833000,-166.66,0.00027212,30]
[425882651,1782019833000,-517.0,0.000275,9]
[425882652,1782019833000,-331.1,0.000279,2]
[425882654,1782019833000,-790.1585857,0.00028164,2]
[425882650,1782019833000,-500.0,0.000275,7]
[425882671,1782019833000,-161.0,0.00028852,30]
[425882687,1782019833000,-3392.08206105,0.00029463,7]
[425882672,1782019833000,-331.1,0.000289,2]
[425882699,1782019833000,-1307.49,0.00029488,2]
[425882700,1782019833000,-396.35,0.00029488,2]
[425882695,1782019833000,-723.29494422,0.00029488,2]
[425882697,1782019833000,-1253.03975264,0.00029488,2]
[425882698,1782019833000,-1307.49,0.00029488,2]
[425882696,1782019833000,-54.45024736,0.00029488,2]
[425882694,1782019833000,-584.19505578,0.00029488,2]
[425882701,1782019833000,-434.0,0.00029489,5]
[425882705,1782019833000,-717.46378227,0.00029489,2]
[425882703,1782019833000,-44001.97350573,0.00029489,2]
[425882707,1782019833000,-492.85471857,0.00029489,2]
[425882706,1782019833000,-251.93596117,0.00029489,2]
[425882708,1782019833000,-4921.10821388,0.00029489,2]
[425882704,1782019833000,-8687.65827335,0.00029489,2]
[425882702,1782019833000,-345.0,0.00029489,5]
[425882693,1782019833000,-600.74025509,0.00029488,2]
[425882673,1782019833000,-790.15858567,0.00028971,2]
[425882692,1782019833000,-706.74974491,0.00029488,2]
[425882675,1782019833000,-912.0,0.00029169,2]
[425882677,1782019833000,-790.15858567,0.0002924,2]
[425882679,1782019833000,-2331.0,0.00029381,3]
[425882676,1782019833000,-152.0,0.00029174,3]
[425882690,1782019833000,-1307.49,0.00029488,2]
[425882680,1782019833000,-213.11694835,0.00029389,2]
[425882684,1782019833000,-173.24479151,0.00029453,2]
[425882678,1782019833000,-200.0,0.00029352,2]
[425882681,1782019833000,-211.23173592,0.00029389,2]
[425882682,1782019833000,-2500.0,0.00029389,2]
[425882685,1782019833000,-1102.13383576,0.00029463,7]
[425882686,1782019833000,-7332.0,0.00029463,7]
[425882691,1782019833000,-1307.49,0.00029488,2]
[425882688,1782019833000,-4303.78410319,0.00029463,7]
[425882689,1782019833000,-10204.9821519,0.00029475,2]
[425882683,1782019833000,-2346.0,0.00029442,3]
[425882734,1782019838000,-777.2934415,0.00029489,2]
[425882733,1782019838000,-224018.66905558,0.00029489,2]
[425882732,1782019838000,-926.77349121,0.00029489,2]
[425882731,1782019838000,-1629.88026371,0.00029489,2]
[425882730,1782019838000,-158.0,0.00028848,30]
[425882736,1782019839000,-2564.01777295,0.00029489,2]
[425882735,1782019839000,-1170.57425554,0.00029489,2]
[425882737,1782019839000,-550.23996339,0.00029489,2]
[425882774,1782019840000,-38642.02192101,0.00029489,2]
[425882772,1782019840000,-337.566,0.00029479,10]
[425882773,1782019840000,-347.339344,0.00029489,2]
[425882771,1782019840000,-390.204,0.00029479,10]
[425882775,1782019841000,-1200.0,0.00029363,2]
[425882781,1782019843000,-733.27176983,0.00029363,2]
[425882782,1782019843000,-3100.81268371,0.00029489,2]
[425882780,1782019843000,-566.72823017,0.00029363,2]
[425882783,1782019843000,-366.91685808,0.00029489,2]
[425882785,1782019843000,-55977.55747155,0.00029489,2]
[425882784,1782019843000,-470.33881269,0.00029489,2]
[425882801,1782019846000,-624.06,0.00029489,2]
[425882800,1782019846000,-26493.05696831,0.00029489,2]
[425882799,1782019846000,-4262.83579996,0.00029489,2]
[425882804,1782020020000,-510.81125064,0.00012899,2]
[425882808,1782020039000,-184.80377755,0.00012899,2]
[425882807,1782020039000,-500.0,0.00012899,2]
[425882806,1782020039000,-165.053,0.00012642,2]
[425882809,1782020039000,-500.0,0.00012899,2]
[425882811,1782020039000,-500.0,0.00012899,2]
[425882805,1782020039000,-2643.074,0.00012642,2]
[425882812,1782020039000,-500.0,0.00012899,2]
[425882813,1782020039000,-500.0,0.00012899,2]
[425882815,1782020039000,-620.65304309,0.00012899,2]
[425882814,1782020039000,-500.0,0.00012899,2]
[425882816,1782020039000,-216.32317309,0.00012899,2]
[425882817,1782020039000,-500.0,0.00012899,2]
[425882810,1782020039000,-500.0,0.00012899,2]
[425882818,1782020049000,500.0,0.00012899,2]
[425882821,1782020074000,-9517.99810902,0.000129,2]
[425882820,1782020074000,-482.00189098,0.00012899,2]
[425882819,1782020074000,-2564.01777295,0.000129,2]
[425882822,1782020091000,-1170.57425554,0.000129,2]
[425882823,1782020108000,-1170.57425554,0.00012899,2]
[425882825,1782020110000,-3928.19526859,0.000129,2]
[425882824,1782020110000,-6071.80473141,0.00012899,2]
[425882826,1782020127000,-550.23996339,0.000129,2]
[425882828,1782020127000,-10000.0,0.000129,2]
[425882829,1782020127000,-10000.0,0.000129,2]
[425882827,1782020127000,-10000.0,0.000129,2]
[425882838,1782020128000,-10000.0,0.000129,2]
[425882837,1782020128000,-10000.0,0.000129,2]
[425882836,1782020128000,-10000.0,0.000129,2]
[425882835,1782020128000,-10000.0,0.000129,2]
[425882834,1782020128000,-10000.0,0.000129,2]
[425882832,1782020128000,-10000.0,0.000129,2]
[425882833,1782020128000,-10000.0,0.000129,2]
[425882831,1782020128000,-10000.0,0.000129,2]
[425882830,1782020128000,-10000.0,0.000129,2]
[425882841,1782020129000,-10000.0,0.000129,2]
[425882839,1782020129000,-10000.0,0.000129,2]
[425882840,1782020129000,-10000.0,0.000129,2]
[425882842,1782020129000,-10000.0,0.000129,2]
[425882846,1782020129000,-10000.0,0.000129,2]
[425882845,1782020129000,-10000.0,0.000129,2]
[425882843,1782020129000,-10000.0,0.000129,2]
[425882847,1782020129000,-10000.0,0.000129,2]
[425882844,1782020129000,-10000.0,0.000129,2]
[425882848,1782020130000,-10000.0,0.000129,2]
[425882849,1782020146000,-504.92067818,0.000128,2]
[425882852,1782020163000,-5929.0,0.000129,2]
[425882850,1782020163000,-500.0,0.00012899,2]
[425882851,1782020163000,-500.0,0.00012899,2]
[425882853,1782020196000,-33950.14451153,0.000129,2]
[425882854,1782020215000,-33950.14451153,0.000129,2]
[425882855,1782020231000,-500.0,0.00012899,2]
[425882856,1782020282000,-500.0,0.00012899,2]
[425882859,1782020495000,-33950.14451153,0.000129,2]
[425882860,1782020512000,-33950.14451153,0.000129,2]
[425882861,1782020529000,-4657.93710714,0.000129,2]
[425882862,1782020545000,-479.36264429,0.00012899,2]
[425882863,1782020596000,-545.6712075,0.00012899,2]
[425882864,1782020650000,-2114.459,0.00012642,2]
[425882865,1782020703000,-165.053,0.00012642,2]
[425882866,1782020757000,-500.0,0.00012898,2]
[425882869,1782020788000,-500.0,0.00012898,2]
[425882868,1782020788000,-857.229336,0.00012833,2]
[425882871,1782020788000,-357.56787544,0.00012899,2]
[425882874,1782020788000,-6340.83898106,0.000129,2]
[425882873,1782020788000,-168.38913036,0.00012899,2]
[425882870,1782020788000,-500.0,0.00012898,2]
[425882872,1782020788000,-198.97467714,0.00012899,2]
[425882875,1782020810000,-23025.6379822,0.000129,2]
[425882876,1782020826000,-23025.6379822,0.000129,2]
[425882877,1782020948000,273.528805,7.945e-05,2]
[425882881,1782020953000,-198.879535,0.00012736,2]
[425882880,1782020953000,-186.193351,0.00012736,2]
[425882879,1782020953000,-12.791075,0.00012736,2]
[425882878,1782020953000,-150.0,0.000127,2]
[425882884,1782020967000,-368.16990407,0.00012799,2]
[425882882,1782020967000,-150.0,0.00012767,2]
[425882885,1782020967000,-500.0,0.00012799,2]
[425882886,1782020967000,-864.81651446,0.000128,2]
[425882883,1782020967000,-401.41426708,0.00012799,2]
[425882887,1782021011000,-33116.54563307,0.000128,2]
[425882888,1782021012000,-2725.55805783,0.000128,2]
[425882890,1782021013000,-892.38523348,0.000128,2]
[425882889,1782021013000,-2725.55805783,0.000128,2]
[425882892,1782021028000,128.25835331,0.000127,2]
[425882891,1782021028000,-33116.54563307,0.000128,2]
[425883784,1782021046000,-8797.14370609,0.000127,2]
[425883785,1782021046000,-95279.19917496,0.000128,2]
[425883786,1782021046000,-33754.52680384,0.000128,2]
[425883788,1782021046000,-344.0,0.000128,2]
[425883799,1782021046000,-3023.62844668,0.000128,2]
[425883787,1782021046000,-0.45336368,0.000128,2]
[425883801,1782021047000,-3162.48856395,0.000128,2]
[425883803,1782021047000,-2040.93248262,0.000128,2]
[425883804,1782021047000,-6931.14934861,0.000128,2]
[425883805,1782021047000,-7221.95488009,0.000128,2]
[425883800,1782021047000,-150.0,0.00012416,2]
[425883806,1782021047000,-550.23996339,0.000128,2]
[425883808,1782021047000,-14976.96952,0.000128,2]
[425883807,1782021047000,-31657.94687673,0.000128,2]
[425883809,1782021047000,-405.6064507,0.000128,2]
[425883810,1782021047000,-1421.10501428,0.000128,2]
[425883802,1782021047000,-678.9113006,0.000128,2]
[425883811,1782021048000,-5266.78111499,0.000128,2]
[425883812,1782021048000,-2489.9277209,0.000128,2]
[425883813,1782021050000,-604.0,0.000128,2]
[425883820,1782021051000,-334897.27915335,0.000128,2]
[425883818,1782021051000,-320.7375,0.000128,2]
[425883819,1782021051000,-908.386245,0.000128,2]
[425883817,1782021051000,-1285.12,0.000128,2]
[425883816,1782021051000,-132.01678984,0.000128,2]
[425883814,1782021051000,-1026.84908209,0.000128,2]
[425883815,1782021051000,-3877.66793787,0.000128,2]
[425883823,1782021080000,-1231.89899896,0.00012,2]
[425883822,1782021080000,-1791.72944772,0.000119,2]
[425883824,1782021082000,-668.28026723,0.00012,2]
[425883825,1782021099000,-250.0,0.0001195,2]
[425883826,1782021220000,-150.0,0.00011591,2]
[425883827,1782021273000,-150.0,0.00011244,2]
[425883829,1782021274000,-162.0,0.000301,120]
[425883828,1782021274000,-1194.1137912,0.0003,120]
[425883831,1782021327000,-150.0,0.00011594,2]
[425883833,1782021329000,209.9596108,0.00030136,120]
[425883832,1782021329000,500.0,0.00029863,120]
[425883835,1782021381000,-589.05,0.00011582,2]
[425883836,1782021398000,-589.05,0.00011702,2]
[425883837,1782021415000,-861.99183634,0.00011524,2]
[425883838,1782021416000,1002.257564,0.000301,120]
[425883839,1782021437000,-500.0,0.00011523,2]
[425883840,1782021440000,180.99417873,0.00010723,2]
[425883844,1782021490000,-1182.19,0.00011453,2]
[425883845,1782021506000,-752.26,0.00011453,2]
[425883847,1782021522000,-383.90388539,0.00011423,2]
[425883848,1782021526000,548.86215618,0.00010723,2]
[425883849,1782021604000,166.66,0.00010959,2]
[425883851,1782021685000,-1288.27,0.00011013,2]
[425883852,1782021700000,210.36706586,0.00010846,2]
[425883853,1782021701000,221.33890735,0.0001071,2]
[425883854,1782021709000,500.0,0.00030136,120]
[425883856,1782021709000,500.0,0.00030136,120]
[425883855,1782021709000,500.0,0.00030136,120]
[425883859,1782021710000,500.0,0.00030136,120]
[425883858,1782021710000,500.0,0.00030136,120]
[425883857,1782021710000,500.0,0.00030136,120]
[425883861,1782021711000,500.0,0.00030136,120]
[425883860,1782021711000,500.0,0.00030136,120]
[425883862,1782021712000,500.0,0.00030136,120]
[425883863,1782021727000,-971.29331867,0.00011034,2]
[425883865,1782021745000,-323.15668133,0.00011034,2]
[425883866,1782021747000,200.0,0.0001094,2]
[425883867,1782021752000,152.11902679,8.752e-05,2]
[425883868,1782021753000,30.93097321,8.752e-05,2]
[425883869,1782021760000,1179.19,0.0001094,2]
[425883870,1782021795000,-150.0,0.00011041,2]
[425883871,1782021796000,150.6,0.00010921,2]
[425883873,1782021817000,510.96,0.00010872,2]
[425883875,1782021849000,-819.092222,0.00011018,2]
[425883877,1782021850000,254.853477,0.00010963,2]
[425883876,1782021850000,150.0,0.00010959,2]
[425883878,1782021854000,310.67,0.00010862,2]
[425883879,1782021855000,-166.66,0.00011128,2]
[425883882,1782021855000,-352.19338637,0.00011263,2]
[425883880,1782021855000,-150.0,0.00011143,2]
[425883881,1782021855000,-150.0,0.00011253,2]
[425883883,1782021857000,348.53558247,0.00011028,2]
[425883884,1782021902000,-166.66,0.00011268,2]
[425883885,1782021920000,262.18,0.00010826,2]
[425883886,1782021956000,-150.0,0.00011283,2]
[425883888,1782021957000,498.12496884,0.00010826,2]
[425883887,1782021957000,1.87503116,0.00010826,2]
[425883889,1782021958000,644.91,0.00010826,2]
[425883894,1782021975000,-216.32317309,0.00011342,2]
[425883893,1782021975000,-250.0,0.00011342,2]
[425883891,1782021975000,-250.0,0.0001129,2]
[425883892,1782021975000,-166.66,0.00011298,2]
[425883890,1782021975000,-205.91238513,0.00011283,2]
[425883895,1782021975000,-215.69744178,0.00011361,2]
[425883896,1782021976000,173.39676904,0.00011453,7]
[425883910,1782022010000,-203.78,0.00011037,2]
[425883911,1782022031000,200.0,0.000118,4]
[425883912,1782022033000,500.0,0.000119,4]
[425883914,1782022063000,-84.30255822,0.00011361,2]
[425883915,1782022117000,-150.0,0.00011361,2]
[425883916,1782022170000,-500.0,0.00011382,2]
[425883918,1782022172000,-500.0,0.00011386,2]
[425883917,1782022172000,-264.49095824,0.00011382,2]
[425883919,1782022172000,-500.0,0.00011386,2]
[425883921,1782022172000,-500.0,0.00011386,2]
[425883920,1782022172000,-500.0,0.00011386,2]
[425883923,1782022172000,-155.43344776,0.00011386,2]
[425883922,1782022172000,-500.0,0.00011386,2]
[425883930,1782022197000,-372.61543326,0.00011386,2]
[425883924,1782022197000,-1058.55,0.00011155,2]
[425883925,1782022197000,-150.0,0.00011384,2]
[425883927,1782022197000,-500.0,0.00011386,2]
[425883928,1782022197000,-500.0,0.00011386,2]
[425883926,1782022197000,-344.56655224,0.00011386,2]
[425883929,1782022197000,-127.38456674,0.00011386,2]
[425883931,1782022197000,-500.0,0.00011386,2]
[425883936,1782022197000,-192.11431428,0.00011386,2]
[425883933,1782022197000,-500.0,0.00011386,2]
[425883932,1782022197000,-500.0,0.00011386,2]
[425883940,1782022197000,-500.0,0.00011386,2]
[425883938,1782022197000,-500.0,0.00011386,2]
[425883935,1782022197000,-307.88568572,0.00011386,2]
[425883937,1782022197000,-500.0,0.00011386,2]
[425883934,1782022197000,-500.0,0.00011386,2]
[425883939,1782022197000,-500.0,0.00011386,2]
[425883952,1782022198000,-500.0,0.00011386,2]
[425883941,1782022198000,-488.3868047,0.00011386,2]
[425883942,1782022198000,-11.6131953,0.00011386,2]
[425883945,1782022198000,-500.0,0.00011386,2]
[425883944,1782022198000,-500.0,0.00011386,2]
[425883946,1782022198000,-500.0,0.00011386,2]
[425883947,1782022198000,-500.0,0.00011386,2]
[425883948,1782022198000,-168.88792368,0.00011386,2]
[425883949,1782022198000,-331.11207632,0.00011386,2]
[425883951,1782022198000,-500.0,0.00011386,2]
[425883950,1782022198000,-500.0,0.00011386,2]
[425883943,1782022198000,-500.0,0.00011386,2]
[425883953,1782022198000,-500.0,0.00011386,2]
[425883956,1782022198000,-500.0,0.00011386,2]
[425883964,1782022198000,-500.0,0.00011386,2]
[425883965,1782022198000,-500.0,0.00011386,2]
[425883963,1782022198000,-500.0,0.00011386,2]
[425883962,1782022198000,-470.10983836,0.00011386,2]
[425883961,1782022198000,-29.89016164,0.00011386,2]
[425883966,1782022198000,-500.0,0.00011386,2]
[425883958,1782022198000,-500.0,0.00011386,2]
[425883959,1782022198000,-500.0,0.00011386,2]
[425883957,1782022198000,-500.0,0.00011386,2]
[425883955,1782022198000,-150.61095734,0.00011386,2]
[425883960,1782022198000,-500.0,0.00011386,2]
[425883954,1782022198000,-349.38904266,0.00011386,2]
[425883977,1782022199000,-500.0,0.00011386,2]
[425883967,1782022199000,-210.39128062,0.00011386,2]
[425883968,1782022199000,-414.00423208,0.00011386,2]
[425883969,1782022199000,-500.0,0.00011386,2]
[425883970,1782022199000,-500.0,0.00011386,2]
[425883971,1782022199000,-500.0,0.00011386,2]
[425883973,1782022199000,-266.4968869,0.00011386,2]
[425883972,1782022199000,-500.0,0.00011386,2]
[425883974,1782022199000,-233.5031131,0.00011386,2]
[425883975,1782022199000,-500.0,0.00011386,2]
[425883976,1782022199000,-500.0,0.00011386,2]
[425883979,1782022199000,-446.99800588,0.00011386,2]
[425883978,1782022199000,-500.0,0.00011386,2]
[425883989,1782022199000,-182.57058585,0.00011386,2]
[425883987,1782022199000,-500.0,0.00011386,2]
[425883986,1782022199000,-500.0,0.00011386,2]
[425883985,1782022199000,-500.0,0.00011386,2]
[425883988,1782022199000,-500.0,0.00011386,2]
[425883983,1782022199000,-2.06946687,0.00011386,2]
[425883981,1782022199000,-500.0,0.00011386,2]
[425883982,1782022199000,-500.0,0.00011386,2]
[425883980,1782022199000,-53.00199412,0.00011386,2]
[425883984,1782022199000,-497.93053313,0.00011386,2]
[425884000,1782022231000,-22.78044598,0.00011386,2]
[425884001,1782022231000,-429.26741309,0.00011386,2]
[425884005,1782022231000,-500.0,0.00011386,2]
[425884003,1782022231000,-429.26741309,0.00011386,2]
[425884002,1782022231000,-70.73258691,0.00011386,2]
[425883999,1782022231000,-477.21955402,0.00011386,2]
[425883993,1782022231000,-317.42941415,0.00011386,2]
[425883997,1782022231000,-400.0,0.00011386,2]
[425883998,1782022231000,-500.0,0.00011386,2]
[425883995,1782022231000,-500.0,0.00011386,2]
[425883994,1782022231000,-500.0,0.00011386,2]
[425883992,1782022231000,-188.78,0.00011256,2]
[425883996,1782022231000,-500.0,0.00011386,2]
[425884006,1782022231000,-406.26741309,0.00011386,2]
[425884004,1782022231000,-70.73258691,0.00011386,2]
[425884007,1782022231000,-93.73258691,0.00011386,2]
[425884008,1782022231000,-500.0,0.00011386,2]
[425884021,1782022231000,-300.0,0.00011386,2]
[425884019,1782022231000,-500.0,0.00011386,2]
[425884018,1782022231000,-500.0,0.00011386,2]
[425884017,1782022231000,-352.65940725,0.00011386,2]
[425884016,1782022231000,-500.0,0.00011386,2]
[425884020,1782022231000,-500.0,0.00011386,2]
[425884012,1782022231000,-467.02273319,0.00011386,2]
[425884011,1782022231000,-320.24711148,0.00011386,2]
[425884010,1782022231000,-179.75288852,0.00011386,2]
[425884014,1782022231000,-497.53502952,0.00011386,2]
[425884013,1782022231000,-500.0,0.00011386,2]
[425884009,1782022231000,-376.51452457,0.00011386,2]
[425884015,1782022231000,-2.46497048,0.00011386,2]
[425884035,1782022232000,-1000.0,0.00011507,2]
[425884043,1782022232000,-237.21424728,0.00011516,2]
[425884044,1782022232000,-452.84,0.00011541,2]
[425884040,1782022232000,-237.21424728,0.00011516,2]
[425884037,1782022232000,-237.21424728,0.00011516,2]
[425884038,1782022232000,-237.21424728,0.00011516,2]
[425884036,1782022232000,-234.7955909,0.00011509,2]
[425884033,1782022232000,-150.0,0.00011495,2]
[425884034,1782022232000,-682.70302243,0.00011502,2]
[425884025,1782022232000,-500.0,0.00011386,2]
[425884029,1782022232000,-552.02793095,0.00011387,2]
[425884031,1782022232000,-234.7955909,0.00011463,2]
[425884030,1782022232000,-234.7955909,0.00011416,2]
[425884027,1782022232000,-500.20418379,0.00011386,2]
[425884026,1782022232000,-187.04028332,0.00011386,2]
[425884047,1782022232000,-500.0,0.00011545,2]
[425884022,1782022232000,-500.0,0.00011386,2]
[425884023,1782022232000,-500.0,0.00011386,2]
[425884024,1782022232000,-500.0,0.00011386,2]
[425884032,1782022232000,-166.66,0.00011467,2]
[425884046,1782022232000,-517.08720398,0.00011545,2]
[425884028,1782022232000,-269.35217725,0.00011386,2]
[425884041,1782022232000,-237.21424728,0.00011516,2]
[425884045,1782022232000,-150.0,0.00011545,2]
[425884068,1782022232000,-4888.71828143,0.00011546,2]
[425884067,1782022232000,-1046.42972454,0.00011546,2]
[425884065,1782022232000,-1102.86804713,0.00011546,2]
[425884066,1782022232000,-8045.0,0.00011546,2]
[425884062,1782022232000,-3945.04121064,0.00011546,2]
[425884064,1782022232000,-1254.09285305,0.00011546,2]
[425884061,1782022232000,-45542.5919351,0.00011546,2]
[425884059,1782022232000,-1015.79310861,0.00011546,2]
[425884060,1782022232000,-1416.66078717,0.00011546,2]
[425884063,1782022232000,-764.92987787,0.00011546,2]
[425884052,1782022232000,-619.48163154,0.00011545,2]
[425884048,1782022232000,-500.0,0.00011545,2]
[425884050,1782022232000,-500.0,0.00011545,2]
[425884058,1782022232000,-13191.18015531,0.00011546,2]
[425884049,1782022232000,-567.10047937,0.00011545,2]
[425884053,1782022232000,-500.0,0.00011545,2]
[425884051,1782022232000,-500.0,0.00011545,2]
[425884054,1782022232000,-500.0,0.00011545,2]
[425884056,1782022232000,-500.0,0.00011545,2]
[425884057,1782022232000,-500.0,0.00011545,2]
[425884055,1782022232000,-402.61041875,0.00011545,2]
[425884082,1782022237000,-1561.03540696,0.00011546,2]
[425884080,1782022237000,-555.78931614,0.00011546,2]
[425884079,1782022237000,-35817.71982315,0.00011546,2]
[425884081,1782022237000,-505.0347142,0.00011546,2]
[425884078,1782022237000,-484.2435367,0.00011509,2]
[425884083,1782022238000,-3666.40529108,0.00011546,2]
[425884085,1782022238000,-336.22096291,0.00011546,2]
[425884084,1782022238000,-564.0886184,0.00011546,2]
[425884088,1782022238000,-589.05,0.00011546,2]
[425884089,1782022238000,-9041.9244631,0.00011546,2]
[425884086,1782022238000,-3153.88746324,0.00011546,2]
[425884087,1782022238000,-1094.0,0.00011546,2]
[425884135,1782022239000,-5012.15190802,0.00011546,2]
[425884136,1782022239000,-35431.28738883,0.00011546,2]
[425884134,1782022239000,-3802.56959814,0.00011546,2]
[425884133,1782022239000,-519.56113632,0.00011546,2]
[425884139,1782022240000,-1226.25160816,0.00011546,2]
[425884140,1782022240000,-1032.08000892,0.00011546,2]
[425884137,1782022240000,-1666.90688967,0.00011546,2]
[425884138,1782022240000,-78562.18982514,0.00011546,2]